[Event "Early-Titled-Tuesday-Blitz-April-16-2024"]
[Site "Chess.com"]
[Date "2024.04.16"]
[Round "2"]
[White "Pelusiansky"]
[Black "dealshark"]
[Result "1-0"]
[WhiteElo "2544"]
[BlackElo "2345"]
[TimeControl "180+1"]
[EndTime "8:16:32 PDT"]
[Termination "Pelusiansky won by checkmate"]

1. e4 {[%clk 0:03:00.9]} 1... c5 {[%clk 0:02:59.6]} 2. Nf3 {[%clk 0:02:56.6]}
2... Nc6 {[%clk 0:02:59.1]} 3. c3 {[%clk 0:02:56.2]} 3... Nf6 {[%clk 0:02:56.9]}
4. e5 {[%clk 0:02:54.7]} 4... Nd5 {[%clk 0:02:57.1]} 5. g3 {[%clk 0:02:51.2]}
5... d6 {[%clk 0:02:56]} 6. exd6 {[%clk 0:02:48.7]} 6... exd6 {[%clk 0:02:39.1]}
7. Bg2 {[%clk 0:02:38.9]} 7... Be7 {[%clk 0:02:36.2]} 8. O-O {[%clk 0:02:36.7]}
8... O-O {[%clk 0:02:35.6]} 9. d4 {[%clk 0:02:36.2]} 9... Bg4 {[%clk 0:02:31.9]}
10. h3 {[%clk 0:02:19.8]} 10... Bh5 {[%clk 0:02:26.7]} 11. dxc5 {[%clk
0:02:12.9]} 11... dxc5 {[%clk 0:02:25.2]} 12. Nbd2 {[%clk 0:02:06.1]} 12... Re8
{[%clk 0:02:15.9]} 13. Nc4 {[%clk 0:01:56.2]} 13... Nf6 {[%clk 0:02:00.7]} 14.
g4 {[%clk 0:01:47.4]} 14... Bg6 {[%clk 0:01:59.5]} 15. Nfe5 {[%clk 0:01:39]}
15... Nxe5 {[%clk 0:01:39.1]} 16. Nxe5 {[%clk 0:01:35.6]} 16... Qb6 {[%clk
0:01:23]} 17. Nxg6 {[%clk 0:01:13.5]} 17... hxg6 {[%clk 0:01:21.6]} 18. Qb3
{[%clk 0:01:10.8]} 18... Bd6 {[%clk 0:00:46.6]} 19. Qxb6 {[%clk 0:01:03.1]}
19... axb6 {[%clk 0:00:47.5]} 20. Bxb7 {[%clk 0:01:02.7]} 20... Ra7 {[%clk
0:00:43.5]} 21. Bf3 {[%clk 0:01:02.7]} 21... Ne4 {[%clk 0:00:35.8]} 22. Be3
{[%clk 0:00:55]} 22... f5 {[%clk 0:00:30]} 23. Rfd1 {[%clk 0:00:54.2]} 23... Bb8
{[%clk 0:00:21.6]} 24. Bxe4 {[%clk 0:00:44.4]} 24... fxe4 {[%clk 0:00:22]} 25.
Rd5 {[%clk 0:00:40.3]} 25... Kf7 {[%clk 0:00:20.1]} 26. a3 {[%clk 0:00:39.9]}
26... Ke6 {[%clk 0:00:19.5]} 27. Rad1 {[%clk 0:00:38.8]} 27... Rf7 {[%clk
0:00:17.3]} 28. Kg2 {[%clk 0:00:37.7]} 28... Bf4 {[%clk 0:00:16.5]} 29. Bxf4
{[%clk 0:00:34.6]} 29... Rxf4 {[%clk 0:00:17.4]} 30. Rd6+ {[%clk 0:00:34.4]}
30... Ke5 {[%clk 0:00:18]} 31. R1d5# {[%clk 0:00:32.5]} 1-0

[Event "Early-Titled-Tuesday-Blitz-April-16-2024"]
[Site "Chess.com"]
[Date "2024.04.16"]
[Round "2"]
[White "aa175"]
[Black "atalz0"]
[Result "0-1"]
[WhiteElo "2743"]
[BlackElo "2425"]
[TimeControl "180+1"]
[EndTime "8:16:35 PDT"]
[Termination "atalz0 won by resignation"]

1. d4 {[%clk 0:02:57.7]} 1... d5 {[%clk 0:02:58.9]} 2. Bf4 {[%clk 0:02:53.6]}
2... c5 {[%clk 0:02:57]} 3. e3 {[%clk 0:02:52.3]} 3... Nc6 {[%clk 0:02:54.6]} 4.
Nf3 {[%clk 0:02:49.8]} 4... Bg4 {[%clk 0:02:49.6]} 5. c3 {[%clk 0:02:49.5]} 5...
e6 {[%clk 0:02:49.5]} 6. Qa4 {[%clk 0:02:49.6]} 6... Bxf3 {[%clk 0:02:44.7]} 7.
gxf3 {[%clk 0:02:49.2]} 7... Bd6 {[%clk 0:02:43.5]} 8. Ba6 {[%clk 0:02:49.7]}
8... Qa5 {[%clk 0:02:06.9]} 9. Qxa5 {[%clk 0:02:48.4]} 9... Nxa5 {[%clk
0:02:07.8]} 10. Bxd6 {[%clk 0:02:48.7]} 10... bxa6 {[%clk 0:02:06.4]} 11. Bxc5
{[%clk 0:02:49.5]} 11... Nb7 {[%clk 0:01:55.2]} 12. Ba3 {[%clk 0:02:48.7]} 12...
Nf6 {[%clk 0:01:41.9]} 13. Nd2 {[%clk 0:02:49.6]} 13... Kd7 {[%clk 0:01:40.4]}
14. Rg1 {[%clk 0:02:42.4]} 14... g6 {[%clk 0:01:39.7]} 15. Ke2 {[%clk
0:02:42.8]} 15... Rhc8 {[%clk 0:01:37]} 16. Nb3 {[%clk 0:02:43.7]} 16... a5
{[%clk 0:01:33.3]} 17. Nc5+ {[%clk 0:02:44.6]} 17... Nxc5 {[%clk 0:01:33.2]} 18.
Bxc5 {[%clk 0:02:45.5]} 18... Kc6 {[%clk 0:01:17.7]} 19. b3 {[%clk 0:02:43.5]}
19... Nd7 {[%clk 0:01:17.7]} 20. Ba3 {[%clk 0:02:43.4]} 20... Kb5 {[%clk
0:01:14.3]} 21. Kd3 {[%clk 0:02:43]} 21... Rc6 {[%clk 0:01:10.6]} 22. Be7 {[%clk
0:02:41.7]} 22... Rac8 {[%clk 0:01:09.4]} 23. a4+ {[%clk 0:02:42.6]} 23... Kb6
{[%clk 0:01:04.1]} 24. Rgc1 {[%clk 0:02:43.5]} 24... e5 {[%clk 0:01:02.9]} 25.
Ba3 {[%clk 0:02:36.2]} 25... f5 {[%clk 0:01:00.6]} 26. Rab1 {[%clk 0:02:34.4]}
26... e4+ {[%clk 0:00:56.9]} 27. fxe4 {[%clk 0:02:31.6]} 27... fxe4+ {[%clk
0:00:57.8]} 28. Kd2 {[%clk 0:02:32.1]} 28... Rf6 {[%clk 0:00:56.7]} 29. Ke2
{[%clk 0:02:32.4]} 29... Ka6 {[%clk 0:00:28.7]} 30. c4 {[%clk 0:02:31.6]} 30...
Nb6 {[%clk 0:00:20.1]} 31. cxd5 {[%clk 0:02:27.3]} 31... Rxc1 {[%clk 0:00:16.7]}
32. Rxc1 {[%clk 0:02:28.2]} 32... Nxd5 {[%clk 0:00:17]} 33. Rc5 {[%clk
0:02:29.1]} 33... Rf5 {[%clk 0:00:15.1]} 34. Ke1 {[%clk 0:02:25.9]} 34... Kb6
{[%clk 0:00:14.5]} 35. Rb5+ {[%clk 0:02:26.3]} 35... Ka6 {[%clk 0:00:14.4]} 36.
Bd6 {[%clk 0:02:24.6]} 36... h5 {[%clk 0:00:14.1]} 37. h4 {[%clk 0:02:24.6]}
37... g5 {[%clk 0:00:13.6]} 38. hxg5 {[%clk 0:02:23.8]} 38... Rxg5 {[%clk
0:00:14.5]} 39. Bg3 {[%clk 0:02:21.6]} 39... Rf5 {[%clk 0:00:12.3]} 40. Kd1
{[%clk 0:02:17]} 40... Nc3+ {[%clk 0:00:09.4]} 41. Kd2 {[%clk 0:02:17.6]} 41...
Nxb5 {[%clk 0:00:09.7]} 42. axb5+ {[%clk 0:02:17.7]} 42... Kxb5 {[%clk
0:00:10.1]} 43. Kc3 {[%clk 0:02:18.6]} 43... Rf8 {[%clk 0:00:08.9]} 44. d5
{[%clk 0:02:18.5]} 44... Rc8+ {[%clk 0:00:05.8]} 45. Kd4 {[%clk 0:02:19.1]}
45... Kb4 {[%clk 0:00:06.4]} 46. d6 {[%clk 0:02:19.8]} 46... Kxb3 {[%clk
0:00:06.2]} 47. Bh4 {[%clk 0:02:20.2]} 47... Rc6 {[%clk 0:00:05.6]} 48. Kd5
{[%clk 0:02:19]} 48... Rc2 {[%clk 0:00:04.8]} 49. Bf6 {[%clk 0:02:17.8]} 49...
Rd2+ {[%clk 0:00:01.3]} 50. Bd4 {[%clk 0:02:18.2]} 50... Rxf2 {[%clk 0:00:01.8]}
51. d7 {[%clk 0:02:19.1]} 51... Rf8 {[%clk 0:00:01.8]} 52. Ke6 {[%clk
0:02:15.4]} 52... a4 {[%clk 0:00:02.1]} 53. Ke7 {[%clk 0:02:15.5]} 53... Rg8
{[%clk 0:00:02.4]} 54. Kf7 {[%clk 0:01:52.7]} 54... Ra8 {[%clk 0:00:02.4]} 55.
Ke7 {[%clk 0:01:53.6]} 55... a3 {[%clk 0:00:02.3]} 56. d8=Q {[%clk 0:01:51.8]}
56... Rxd8 {[%clk 0:00:02.5]} 57. Kxd8 {[%clk 0:01:52.7]} 57... a2 {[%clk
0:00:03]} 58. Ke7 {[%clk 0:01:53.6]} 58... h4 {[%clk 0:00:03.2]} 59. Ke6 {[%clk
0:01:54.5]} 59... h3 {[%clk 0:00:03.7]} 60. Ke5 {[%clk 0:01:55.4]} 60... h2
{[%clk 0:00:04.3]} 61. Kxe4 {[%clk 0:01:56.3]} 61... h1=Q+ {[%clk 0:00:04.8]}
62. Ke5 {[%clk 0:01:56.7]} 62... Qb7 {[%clk 0:00:05.5]} 63. Kd6 {[%clk
0:01:56.7]} 63... a5 {[%clk 0:00:05.9]} 64. e4 {[%clk 0:01:56.5]} 64... Kc2
{[%clk 0:00:06.2]} 65. e5 {[%clk 0:01:57.2]} 65... Kb1 {[%clk 0:00:06.6]} 66. e6
{[%clk 0:01:57.9]} 66... a1=Q {[%clk 0:00:07.1]} 67. Bxa1 {[%clk 0:01:58.3]}
67... Kxa1 {[%clk 0:00:07.9]} 68. e7 {[%clk 0:01:59]} 68... Qxe7+ {[%clk
0:00:08.1]} 69. Kxe7 {[%clk 0:01:59.9]} 69... a4 {[%clk 0:00:08.8]} 70. Kd6
{[%clk 0:02:00.8]} 70... a3 {[%clk 0:00:09.5]} 71. Kd5 {[%clk 0:02:01.7]} 71...
a2 {[%clk 0:00:10.3]} 72. Kc4 {[%clk 0:02:02.6]} 72... Kb2 {[%clk 0:00:10.8]}
0-1

[Event "Early-Titled-Tuesday-Blitz-April-16-2024"]
[Site "Chess.com"]
[Date "2024.04.16"]
[Round "2"]
[White "Devil_Sun"]
[Black "LevonAronian"]
[Result "0-1"]
[WhiteElo "2640"]
[BlackElo "3079"]
[TimeControl "180+1"]
[EndTime "8:16:36 PDT"]
[Termination "LevonAronian won by resignation"]

1. d4 {[%clk 0:03:00.9]} 1... Nf6 {[%clk 0:02:53.4]} 2. c4 {[%clk 0:03:00.4]}
2... g6 {[%clk 0:02:53.3]} 3. Nc3 {[%clk 0:03:00]} 3... Bg7 {[%clk 0:02:53.6]}
4. e4 {[%clk 0:02:59.4]} 4... d6 {[%clk 0:02:54]} 5. Nf3 {[%clk 0:02:58.8]} 5...
O-O {[%clk 0:02:53.9]} 6. Be2 {[%clk 0:02:59.3]} 6... c5 {[%clk 0:02:54.1]} 7.
d5 {[%clk 0:02:58.9]} 7... a6 {[%clk 0:02:51.4]} 8. O-O {[%clk 0:02:40.1]} 8...
e5 {[%clk 0:02:48.4]} 9. dxe6 {[%clk 0:02:25.1]} 9... Bxe6 {[%clk 0:02:48]} 10.
Bg5 {[%clk 0:02:19.1]} 10... h6 {[%clk 0:02:41.3]} 11. Bf4 {[%clk 0:02:13.7]}
11... Ne8 {[%clk 0:02:41]} 12. Qd2 {[%clk 0:02:05.4]} 12... g5 {[%clk
0:02:40.8]} 13. Bg3 {[%clk 0:01:57.8]} 13... Nc6 {[%clk 0:02:41.1]} 14. Rfd1
{[%clk 0:01:47]} 14... Qf6 {[%clk 0:02:29.6]} 15. Nd5 {[%clk 0:01:35.1]} 15...
Bxd5 {[%clk 0:02:16.8]} 16. cxd5 {[%clk 0:01:26.7]} 16... Nd4 {[%clk 0:02:15.7]}
17. Nxd4 {[%clk 0:01:19]} 17... Qxd4 {[%clk 0:02:16.3]} 18. Qc2 {[%clk
0:01:16.6]} 18... Qb4 {[%clk 0:02:09.6]} 19. Rab1 {[%clk 0:01:02.5]} 19... Rc8
{[%clk 0:02:03.6]} 20. a3 {[%clk 0:01:00.6]} 20... Qa5 {[%clk 0:02:02.7]} 21.
Bg4 {[%clk 0:00:55.9]} 21... Rc7 {[%clk 0:02:02.7]} 22. e5 {[%clk 0:00:39.8]}
22... Bxe5 {[%clk 0:01:55.1]} 23. Bxe5 {[%clk 0:00:39.3]} 23... dxe5 {[%clk
0:01:55.7]} 24. d6 {[%clk 0:00:39]} 24... Rc6 {[%clk 0:01:56.2]} 25. Qf5 {[%clk
0:00:20.7]} 25... c4 {[%clk 0:01:43.7]} 26. d7 {[%clk 0:00:17.7]} 26... Ng7
{[%clk 0:01:42.5]} 27. Qf3 {[%clk 0:00:13.4]} 27... f5 {[%clk 0:01:40.5]} 28.
Bxf5 {[%clk 0:00:12.7]} 28... Nxf5 {[%clk 0:01:38.6]} 29. Qxf5 {[%clk
0:00:12.9]} 29... Rxf5 {[%clk 0:01:37.3]} 30. d8=Q+ {[%clk 0:00:13.8]} 30...
Qxd8 {[%clk 0:01:37.3]} 31. Rxd8+ {[%clk 0:00:14.7]} 31... Rf8 {[%clk
0:01:37.5]} 32. Rd7 {[%clk 0:00:15.1]} 32... Rf7 {[%clk 0:01:37.8]} 33. Rd8+
{[%clk 0:00:14.2]} 33... Kg7 {[%clk 0:01:37.8]} 34. Re8 {[%clk 0:00:14.9]} 34...
Kf6 {[%clk 0:01:33.1]} 35. Re1 {[%clk 0:00:14.5]} 35... Re7 {[%clk 0:01:30.3]}
36. Rxe7 {[%clk 0:00:12.2]} 36... Kxe7 {[%clk 0:01:30.4]} 37. Rxe5+ {[%clk
0:00:13.1]} 37... Re6 {[%clk 0:01:27]} 38. Rxe6+ {[%clk 0:00:10.8]} 38... Kxe6
{[%clk 0:01:27.5]} 39. Kf1 {[%clk 0:00:10.2]} 39... Kd5 {[%clk 0:01:27.1]} 40.
Ke2 {[%clk 0:00:10.8]} 40... Kd4 {[%clk 0:01:27.4]} 41. Kd2 {[%clk 0:00:10.9]}
41... b5 {[%clk 0:01:27.4]} 42. g3 {[%clk 0:00:11]} 42... g4 {[%clk 0:01:27.3]}
43. Kc2 {[%clk 0:00:10.4]} 43... a5 {[%clk 0:01:26.3]} 44. Kd2 {[%clk
0:00:09.7]} 44... b4 {[%clk 0:01:26.7]} 45. axb4 {[%clk 0:00:09.6]} 45... axb4
{[%clk 0:01:27]} 46. Ke2 {[%clk 0:00:10.5]} 46... Ke4 {[%clk 0:01:27]} 47. Kd2
{[%clk 0:00:09.1]} 47... Kf3 {[%clk 0:01:27.3]} 48. Ke1 {[%clk 0:00:08.6]} 48...
h5 {[%clk 0:01:27.4]} 49. Kf1 {[%clk 0:00:08.3]} 49... c3 {[%clk 0:01:27.7]} 0-1

[Event "Early-Titled-Tuesday-Blitz-April-16-2024"]
[Site "Chess.com"]
[Date "2024.04.16"]
[Round "2"]
[White "vedantgoswami"]
[Black "Zavgorodniy_Sergiy"]
[Result "1/2-1/2"]
[WhiteElo "2345"]
[BlackElo "2610"]
[TimeControl "180+1"]
[EndTime "8:16:40 PDT"]
[Termination "Game drawn by repetition"]

1. d4 {[%clk 0:02:27.9]} 1... d5 {[%clk 0:02:59.4]} 2. Bf4 {[%clk 0:02:26.6]}
2... Nf6 {[%clk 0:02:59]} 3. e3 {[%clk 0:02:26.8]} 3... e6 {[%clk 0:02:58.8]} 4.
Nf3 {[%clk 0:02:27]} 4... c5 {[%clk 0:02:58.6]} 5. c3 {[%clk 0:02:26.7]} 5...
Bd6 {[%clk 0:02:57.9]} 6. Bd3 {[%clk 0:02:25.6]} 6... Qc7 {[%clk 0:02:57.4]} 7.
Bxd6 {[%clk 0:02:18.2]} 7... Qxd6 {[%clk 0:02:57.3]} 8. Ne5 {[%clk 0:02:19.1]}
8... O-O {[%clk 0:02:56.6]} 9. f4 {[%clk 0:02:18.8]} 9... b6 {[%clk 0:02:56.6]}
10. Nd2 {[%clk 0:02:18.6]} 10... Ba6 {[%clk 0:02:56.5]} 11. Bxa6 {[%clk
0:02:14.6]} 11... Nxa6 {[%clk 0:02:57.4]} 12. O-O {[%clk 0:02:14.6]} 12... Nc7
{[%clk 0:02:57.3]} 13. Rf3 {[%clk 0:02:12.3]} 13... Nce8 {[%clk 0:02:48.9]} 14.
Rh3 {[%clk 0:02:10.9]} 14... Qe7 {[%clk 0:02:48.1]} 15. Qf3 {[%clk 0:02:01.2]}
15... Nd6 {[%clk 0:02:46.5]} 16. g4 {[%clk 0:01:47.3]} 16... Nfe4 {[%clk
0:02:45.9]} 17. Nxe4 {[%clk 0:01:44.9]} 17... Nxe4 {[%clk 0:02:46.8]} 18. g5
{[%clk 0:01:44.1]} 18... g6 {[%clk 0:02:27.7]} 19. Rh6 {[%clk 0:01:34.9]} 19...
Nxg5 {[%clk 0:02:19.2]} 20. Qg4 {[%clk 0:01:23.8]} 20... Ne4 {[%clk 0:02:17.5]}
21. Rf1 {[%clk 0:01:17.7]} 21... f5 {[%clk 0:02:09.5]} 22. Qg2 {[%clk
0:01:13.6]} 22... Rf6 {[%clk 0:02:09.2]} 23. Rf3 {[%clk 0:01:12.7]} 23... Qg7
{[%clk 0:01:55.6]} 24. Rfh3 {[%clk 0:01:11.2]} 24... Re8 {[%clk 0:01:42.7]} 25.
Kf1 {[%clk 0:01:07]} 25... Re7 {[%clk 0:01:41.7]} 26. Ke2 {[%clk 0:01:06.4]}
26... c4 {[%clk 0:01:36.7]} 27. Nf3 {[%clk 0:00:57.3]} 27... b5 {[%clk
0:01:33.4]} 28. a3 {[%clk 0:00:55.9]} 28... a5 {[%clk 0:01:33]} 29. Ne5 {[%clk
0:00:53.1]} 29... a4 {[%clk 0:01:13.8]} 30. Kd1 {[%clk 0:00:47.9]} 30... Qf8
{[%clk 0:00:56.6]} 31. Nf3 {[%clk 0:00:47.5]} 31... Rg7 {[%clk 0:00:55.8]} 32.
Ng5 {[%clk 0:00:46]} 32... Nxg5 {[%clk 0:00:55.1]} 33. Qxg5 {[%clk 0:00:45.6]}
33... Rff7 {[%clk 0:00:53.3]} 34. Ke2 {[%clk 0:00:43.8]} 34... Qe7 {[%clk
0:00:53]} 35. Kf3 {[%clk 0:00:40.7]} 35... Qxg5 {[%clk 0:00:52.7]} 36. fxg5
{[%clk 0:00:40.7]} 36... Re7 {[%clk 0:00:52.9]} 37. Kf4 {[%clk 0:00:38.9]} 37...
Rd7 {[%clk 0:00:51.5]} 38. Ke5 {[%clk 0:00:38]} 38... Rge7 {[%clk 0:00:51.2]}
39. Rf3 {[%clk 0:00:35.1]} 39... Kg7 {[%clk 0:00:49.9]} 40. Rhh3 {[%clk
0:00:32.2]} 40... Re8 {[%clk 0:00:47.6]} 41. Rh6 {[%clk 0:00:32.1]} 41... Ree7
{[%clk 0:00:46.4]} 42. Rfh3 {[%clk 0:00:32]} 42... Kg8 {[%clk 0:00:42.4]} 43.
Rf3 {[%clk 0:00:31.6]} 43... Kg7 {[%clk 0:00:42.3]} 1/2-1/2

[Event "Early-Titled-Tuesday-Blitz-April-16-2024"]
[Site "Chess.com"]
[Date "2024.04.16"]
[Round "2"]
[White "ural58"]
[Black "carloseduar100"]
[Result "0-1"]
[WhiteElo "2479"]
[BlackElo "2236"]
[TimeControl "180+1"]
[EndTime "8:16:44 PDT"]
[Termination "carloseduar100 won by resignation"]

1. e4 {[%clk 0:02:48.2]} 1... e6 {[%clk 0:02:46.6]} 2. d4 {[%clk 0:02:46.9]}
2... d5 {[%clk 0:02:46.9]} 3. Nc3 {[%clk 0:02:46.6]} 3... Nf6 {[%clk 0:02:45.5]}
4. Bg5 {[%clk 0:02:45.6]} 4... Be7 {[%clk 0:02:45.1]} 5. e5 {[%clk 0:02:45.4]}
5... Nfd7 {[%clk 0:02:45.1]} 6. Bxe7 {[%clk 0:02:45.4]} 6... Qxe7 {[%clk
0:02:45.2]} 7. f4 {[%clk 0:02:45.4]} 7... O-O {[%clk 0:02:45.3]} 8. Bd3 {[%clk
0:02:33.7]} 8... c5 {[%clk 0:02:44.9]} 9. Nf3 {[%clk 0:02:32.4]} 9... f5 {[%clk
0:02:43.8]} 10. exf6 {[%clk 0:02:24.3]} 10... Qxf6 {[%clk 0:02:39.9]} 11. g3
{[%clk 0:02:17.2]} 11... cxd4 {[%clk 0:02:36.2]} 12. Nxd4 {[%clk 0:02:16.2]}
12... e5 {[%clk 0:02:34.3]} 13. Ndb5 {[%clk 0:02:09.7]} 13... exf4 {[%clk
0:02:21.1]} 14. O-O {[%clk 0:02:06]} 14... Qb6+ {[%clk 0:01:29.3]} 15. Kh1
{[%clk 0:01:51.1]} 15... d4 {[%clk 0:01:15.3]} 16. Nxd4 {[%clk 0:01:45.7]} 16...
fxg3 {[%clk 0:01:13.5]} 17. Bc4+ {[%clk 0:01:43.6]} 17... Kh8 {[%clk 0:01:12]}
18. Qd3 {[%clk 0:00:57]} 18... Nf6 {[%clk 0:01:11.4]} 19. hxg3 {[%clk
0:00:53.7]} 19... Nc6 {[%clk 0:01:11.5]} 20. Nf3 {[%clk 0:00:48.4]} 20... Qc5
{[%clk 0:00:42.8]} 21. a3 {[%clk 0:00:41.1]} 21... Bg4 {[%clk 0:00:42.3]} 22. b4
{[%clk 0:00:25.4]} 22... Qh5+ {[%clk 0:00:41.3]} 23. Nh2 {[%clk 0:00:24.6]}
23... Rad8 {[%clk 0:00:41.9]} 24. Rxf6 {[%clk 0:00:14.8]} 24... Rxf6 {[%clk
0:00:37.6]} 25. Nd5 {[%clk 0:00:15]} 25... Rf2 {[%clk 0:00:32.2]} 0-1

[Event "Early-Titled-Tuesday-Blitz-April-16-2024"]
[Site "Chess.com"]
[Date "2024.04.16"]
[Round "2"]
[White "familijatop71"]
[Black "Payyappat"]
[Result "0-1"]
[WhiteElo "2301"]
[BlackElo "2524"]
[TimeControl "180+1"]
[EndTime "8:16:49 PDT"]
[Termination "Payyappat won by checkmate"]

1. e4 {[%clk 0:03:00.9]} 1... c6 {[%clk 0:02:56.1]} 2. d4 {[%clk 0:03:00.1]}
2... d5 {[%clk 0:02:57]} 3. e5 {[%clk 0:02:59.9]} 3... Bf5 {[%clk 0:02:56.6]} 4.
Nf3 {[%clk 0:03:00.1]} 4... e6 {[%clk 0:02:56.9]} 5. Be2 {[%clk 0:03:00.2]} 5...
Ne7 {[%clk 0:02:57.5]} 6. O-O {[%clk 0:02:59.8]} 6... Ng6 {[%clk 0:02:58.4]} 7.
Ne1 {[%clk 0:02:47]} 7... h5 {[%clk 0:02:55.6]} 8. c3 {[%clk 0:02:41.8]} 8...
Nd7 {[%clk 0:02:49.4]} 9. Na3 {[%clk 0:02:41.3]} 9... f6 {[%clk 0:02:45.1]} 10.
f4 {[%clk 0:02:32.6]} 10... fxe5 {[%clk 0:02:35]} 11. fxe5 {[%clk 0:02:31.4]}
11... Qc7 {[%clk 0:02:17.5]} 12. Nac2 {[%clk 0:02:12.5]} 12... O-O-O {[%clk
0:02:14.8]} 13. Ne3 {[%clk 0:02:11.9]} 13... Be4 {[%clk 0:02:13.8]} 14. Bf3
{[%clk 0:02:02.3]} 14... Ndxe5 {[%clk 0:01:50.9]} 15. dxe5 {[%clk 0:01:53.9]}
15... Nxe5 {[%clk 0:01:51.8]} 16. Bxe4 {[%clk 0:01:46]} 16... dxe4 {[%clk
0:01:50.9]} 17. Qa4 {[%clk 0:01:41.9]} 17... Bc5 {[%clk 0:01:44.7]} 18. Qxe4
{[%clk 0:01:38.3]} 18... Ng4 {[%clk 0:01:44.5]} 19. Nf3 {[%clk 0:01:16.3]} 19...
Rhf8 {[%clk 0:01:40.6]} 20. h3 {[%clk 0:00:53.8]} 20... Rxf3 {[%clk 0:01:24.2]}
21. hxg4 {[%clk 0:00:52.2]} 21... Rxf1+ {[%clk 0:01:19.6]} 22. Kxf1 {[%clk
0:00:51.9]} 22... Qh2 {[%clk 0:01:16.7]} 23. Ke2 {[%clk 0:00:38.5]} 23... Qg1
{[%clk 0:00:51.4]} 24. Qxe6+ {[%clk 0:00:31.7]} 24... Kc7 {[%clk 0:00:49.9]} 25.
Qe5+ {[%clk 0:00:30.6]} 25... Kb6 {[%clk 0:00:49]} 26. Nc4+ {[%clk 0:00:25.5]}
26... Ka6 {[%clk 0:00:49]} 27. Be3 {[%clk 0:00:15.2]} 27... Qxg2+ {[%clk
0:00:28]} 28. Ke1 {[%clk 0:00:09.1]} 28... Rf8 {[%clk 0:00:23.6]} 29. Qxc5
{[%clk 0:00:05.9]} 29... Rf1# {[%clk 0:00:22.6]} 0-1

[Event "Early-Titled-Tuesday-Blitz-April-16-2024"]
[Site "Chess.com"]
[Date "2024.04.16"]
[Round "2"]
[White "ferdipy"]
[Black "PedroGil25"]
[Result "0-1"]
[WhiteElo "2260"]
[BlackElo "2506"]
[TimeControl "180+1"]
[EndTime "8:16:51 PDT"]
[Termination "PedroGil25 won on time"]

1. e4 {[%clk 0:03:00.9]} 1... c5 {[%clk 0:03:00]} 2. d4 {[%clk 0:03:00.1]} 2...
cxd4 {[%clk 0:03:00.9]} 3. c3 {[%clk 0:02:59.4]} 3... Nf6 {[%clk 0:03:00.7]} 4.
e5 {[%clk 0:02:55.5]} 4... Nd5 {[%clk 0:03:00.9]} 5. Nf3 {[%clk 0:02:51.4]} 5...
e6 {[%clk 0:03:00.8]} 6. cxd4 {[%clk 0:02:50.8]} 6... d6 {[%clk 0:03:01.2]} 7.
a3 {[%clk 0:02:48.8]} 7... Be7 {[%clk 0:02:58.6]} 8. Bd3 {[%clk 0:02:47.6]} 8...
b6 {[%clk 0:02:55.8]} 9. O-O {[%clk 0:02:41.4]} 9... Bb7 {[%clk 0:02:55.1]} 10.
Bd2 {[%clk 0:02:39]} 10... O-O {[%clk 0:02:54.9]} 11. Nc3 {[%clk 0:02:37.6]}
11... Nd7 {[%clk 0:02:55.3]} 12. Qe2 {[%clk 0:02:34.1]} 12... Nxc3 {[%clk
0:02:55.1]} 13. Bxc3 {[%clk 0:02:30.2]} 13... Rc8 {[%clk 0:02:55.5]} 14. Rac1
{[%clk 0:02:29.5]} 14... dxe5 {[%clk 0:02:37.8]} 15. dxe5 {[%clk 0:02:21.2]}
15... Nc5 {[%clk 0:02:37.8]} 16. Bc2 {[%clk 0:02:20.8]} 16... Ba6 {[%clk
0:02:37.7]} 17. Qe3 {[%clk 0:02:15.3]} 17... Bxf1 {[%clk 0:02:37.4]} 18. Rxf1
{[%clk 0:02:16.2]} 18... Qc7 {[%clk 0:02:34.3]} 19. Ng5 {[%clk 0:02:10.7]} 19...
Bxg5 {[%clk 0:02:33.7]} 20. Qxg5 {[%clk 0:02:10.4]} 20... Rfd8 {[%clk
0:02:32.5]} 21. h4 {[%clk 0:02:02.4]} 21... h6 {[%clk 0:02:30.6]} 22. Qg3 {[%clk
0:01:57.8]} 22... a5 {[%clk 0:02:22.9]} 23. f4 {[%clk 0:01:44.7]} 23... Qc6
{[%clk 0:02:16]} 24. f5 {[%clk 0:01:42.7]} 24... Ne4 {[%clk 0:02:05.5]} 25. Bxe4
{[%clk 0:01:42.7]} 25... Qxe4 {[%clk 0:02:06.4]} 26. f6 {[%clk 0:01:40.8]} 26...
g6 {[%clk 0:02:06.9]} 27. h5 {[%clk 0:01:35]} 27... g5 {[%clk 0:02:02.1]} 28.
Re1 {[%clk 0:01:35.5]} 28... Qf5 {[%clk 0:02:01.9]} 29. Qe3 {[%clk 0:01:31.3]}
29... Rc5 {[%clk 0:01:58.6]} 30. b4 {[%clk 0:01:27.2]} 30... Rd3 {[%clk
0:01:51.3]} 31. bxc5 {[%clk 0:01:24.2]} 31... Rxe3 {[%clk 0:01:51.3]} 32. Rxe3
{[%clk 0:01:24.2]} 32... bxc5 {[%clk 0:01:51.7]} 33. Bxa5 {[%clk 0:01:19.3]}
33... g4 {[%clk 0:01:51.6]} 34. g3 {[%clk 0:01:02.2]} 34... Qxh5 {[%clk
0:01:51.1]} 35. a4 {[%clk 0:00:58.7]} 35... Qf5 {[%clk 0:01:50.8]} 36. Be1
{[%clk 0:00:56.2]} 36... Qb1 {[%clk 0:01:45.4]} 37. a5 {[%clk 0:00:51]} 37... c4
{[%clk 0:01:43.6]} 38. Kf1 {[%clk 0:00:48.3]} 38... Qa2 {[%clk 0:01:43.3]} 39.
Re4 {[%clk 0:00:42.7]} 39... h5 {[%clk 0:01:42.9]} 40. Re3 {[%clk 0:00:36]}
40... Kh7 {[%clk 0:01:42.6]} 41. Kg1 {[%clk 0:00:33.7]} 41... Kg6 {[%clk
0:01:42]} 42. Kf1 {[%clk 0:00:32.2]} 42... Kf5 {[%clk 0:01:41.1]} 43. Kg1 {[%clk
0:00:31.6]} 43... h4 {[%clk 0:01:27.2]} 44. gxh4 {[%clk 0:00:27.3]} 44... Kf4
{[%clk 0:01:27.3]} 45. Rc3 {[%clk 0:00:24.5]} 45... Kxe5 {[%clk 0:01:21.5]} 46.
Kf1 {[%clk 0:00:21.1]} 46... Kxf6 {[%clk 0:01:20.4]} 47. Rg3 {[%clk 0:00:19.6]}
47... Kf5 {[%clk 0:01:20]} 48. Rg2 {[%clk 0:00:19.3]} 48... Qa1 {[%clk
0:01:18.2]} 49. h5 {[%clk 0:00:17.5]} 49... Kg5 {[%clk 0:01:16.7]} 0-1